fUST/lending_fUST_20250925
["ID","MTS","AMOUNT","RATE_DAILY","PERIOD"]
[387512383,1758749449384,-641.07,0.00024383,2]
[387512384,1758749449396,-598.05,0.00024383,2]
[387512385,1758749449405,-926.85,0.00024383,2]
[387512386,1758749449415,-1028.54,0.00024383,2]
[387512387,1758749449425,-480.0,0.00024383,2]
[387512388,1758749449434,-678.24,0.00024383,2]
[387512389,1758749449443,-557.69,0.00024383,2]
[387512390,1758749449453,-480.0,0.00024383,2]
[387512391,1758749449463,-553.18,0.00024383,2]
[387512392,1758749449472,-2019.95,0.00024383,2]
[387512393,1758749449482,-821.48,0.00024383,2]
[387512394,1758749449491,-694.72,0.00024383,2]
[387512395,1758749449502,-496.13,0.00024383,2]
[387512396,1758749449511,-480.0,0.00024383,2]
[387512397,1758749449521,-585.45,0.00024383,2]
[387512398,1758749449531,-480.0,0.00024383,2]
[387512399,1758749449540,-638.68,0.00024383,2]
[387512400,1758749449550,-310.0,0.000245,2]
[387512401,1758749449559,-9943.24264483,0.0002465,2]
[387512402,1758749449569,-508.49,0.00024657,2]
[387512403,1758749449579,-641.07,0.00024657,2]
[387512404,1758749449589,-598.05,0.00024657,2]
[387512405,1758749449599,-926.85,0.00024657,2]
[387512406,1758749449609,-1028.54,0.00024657,2]
[387512407,1758749449619,-484.94,0.00024657,2]
[387512408,1758749449631,-678.24,0.00024657,2]
[387512409,1758749449641,-557.69,0.00024657,2]
[387512410,1758749449650,-480.0,0.00024657,2]
[387512411,1758749449660,-553.18,0.00024657,2]
[387512412,1758749449669,-2019.95,0.00024657,2]
[387512413,1758749449679,-821.48,0.00024657,2]
[387512414,1758749449689,-694.72,0.00024657,2]
[387512415,1758749449699,-496.13,0.00024657,2]
[387512416,1758749449708,-480.0,0.00024657,2]
[387512417,1758749449717,-585.45,0.00024657,2]
[387512418,1758749449727,-480.0,0.00024657,2]
[387512419,1758749449737,-638.68,0.00024657,2]
[387512420,1758749449747,-159956.09179341,0.00024818,2]
[387512421,1758749449757,-5000.0,0.00024843,2]
[387512422,1758749449767,-151.0,0.000249,7]
[387512423,1758749449776,-151.0,0.000249,7]
[387512424,1758749449786,-151.0,0.000249,7]
[387512425,1758749449797,-151.0,0.000249,7]
[387512426,1758749449806,-151.0,0.000249,7]
[387512427,1758749449815,-151.0,0.000249,7]
[387512428,1758749449825,-151.0,0.000249,7]
[387512429,1758749449834,-151.0,0.000249,7]
[387512430,1758749449844,-151.0,0.000249,7]
[387512431,1758749449853,-151.0,0.000249,7]
[387512432,1758749449863,-151.0,0.000249,7]
[387512433,1758749449872,-151.0,0.000249,7]
[387512434,1758749449882,-151.0,0.000249,7]
[387512435,1758749449891,-151.0,0.000249,7]
[387512436,1758749449901,-190.0,0.000249,7]
[387512437,1758749449910,-151.0,0.000249,7]
[387512438,1758749449920,-679.209508,0.000249,7]
[387512439,1758749449930,-679.209508,0.000249,7]
[387512440,1758749449939,-679.209508,0.000249,7]
[387512441,1758749449949,-679.209508,0.000249,7]
[387512442,1758749449958,-151.0,0.000249,7]
[387512443,1758749449968,-151.0,0.000249,7]
[387512444,1758749449977,-151.0,0.000249,7]
[387512445,1758749449987,-151.0,0.000249,7]
[387512446,1758749449997,-151.0,0.000249,7]
[387512447,1758749450006,-151.0,0.000249,7]
[387512448,1758749450016,-151.0,0.000249,7]
[387512449,1758749450026,-151.0,0.000249,7]
[387512450,1758749450035,-151.0,0.000249,7]
[387512451,1758749450046,-151.0,0.000249,7]
[387512452,1758749450055,-167681.86515076,0.000249,2]
[387512453,1758749450142,-343642.19840724,0.000249,2]
[387512454,1758749450152,-151.0,0.000249,7]
[387512455,1758749450162,-214.583407,0.000249,7]
[387512456,1758749450172,-151.0,0.000249,7]
[387512457,1758749450182,-151.0,0.000249,7]
[387512458,1758749450191,-151.758118,0.000249,7]
[387512459,1758749450201,-162.042622,0.000249,7]
[387512460,1758749450275,-151.0,0.000249,7]
[387512461,1758749450285,-151.0,0.000249,7]
[387512462,1758749450295,-151.0,0.000249,7]
[387512463,1758749450304,-727.107319,0.000249,7]
[387512464,1758749450314,-727.107319,0.000249,7]
[387512465,1758749450323,-727.107319,0.000249,7]
[387512466,1758749450333,-727.107319,0.000249,7]
[387512467,1758749450343,-206.628109,0.000249,7]
[387512468,1758749450352,-837.764433,0.000249,7]
[387512469,1758749450361,-151.0,0.000249,7]
[387512470,1758749450371,-837.764433,0.000249,7]
[387512471,1758749450380,-151.0,0.000249,7]
[387512472,1758749450392,-837.764433,0.000249,7]
[387512473,1758749450402,-151.0,0.000249,7]
[387512474,1758749450412,-837.764433,0.000249,7]
[387512475,1758749450422,-203.469089,0.000249,7]
[387512476,1758749450431,-872.88895,0.000249,7]
[387512477,1758749450442,-151.0,0.000249,7]
[387512478,1758749450451,-872.88895,0.000249,7]
[387512479,1758749450461,-151.0,0.000249,7]
[387512480,1758749450471,-151.0,0.000249,7]
[387512481,1758749450481,-872.88895,0.000249,7]
[387512482,1758749450491,-151.0,0.000249,7]
[387512483,1758749450500,-151.0,0.000249,7]
[387512484,1758749450509,-872.88895,0.000249,7]
[387512485,1758749450519,-151.0,0.000249,7]
[387512486,1758749450529,-151.0,0.000249,7]
[387512487,1758749450537,-151.0,0.000249,7]
[387512488,1758749450547,-151.0,0.000249,7]
[387512489,1758749450557,-151.0,0.000249,7]
[387512490,1758749450566,-151.0,0.000249,7]
[387512491,1758749450576,-151.0,0.000249,7]
[387512492,1758749450585,-151.0,0.000249,7]
[387512493,1758749450595,-151.0,0.000249,7]
[387512494,1758749450605,-151.0,0.000249,7]
[387512495,1758749450614,-151.0,0.000249,7]
[387512496,1758749450624,-151.0,0.000249,7]
[387512497,1758749450635,-255.324,0.000249,7]
[387512498,1758749450645,-255.324,0.000249,7]
[387512499,1758749450654,-255.324,0.000249,7]
[387512500,1758749450663,-255.324,0.000249,7]
[387512501,1758749450672,-151.0,0.000249,7]
[387512502,1758749450681,-396.044083,0.000249,7]
[387512503,1758749450691,-151.0,0.000249,7]
[387512504,1758749450700,-508.49,0.00024931,2]
[387512505,1758749450710,-641.07,0.00024931,2]
[387512506,1758749450719,-598.05,0.00024931,2]
[387512507,1758749450729,-926.85,0.00024931,2]
[387512508,1758749450739,-1028.54,0.00024931,2]
[387512509,1758749450748,-678.24,0.00024931,2]
[387512510,1758749450758,-557.69,0.00024931,2]
[387512511,1758749450768,-303.43,0.00024931,2]
[387512512,1758749450777,-553.18,0.00024931,2]
[387512513,1758749450787,-2019.95,0.00024931,2]
[387512514,1758749450797,-821.48,0.00024931,2]
[387512515,1758749450807,-694.72,0.00024931,2]
[387512516,1758749450817,-496.13,0.00024931,2]
[387512517,1758749450826,-480.0,0.00024931,2]
[387512518,1758749450836,-585.45,0.00024931,2]
[387512519,1758749450845,-480.0,0.00024931,2]
[387512520,1758749450855,-638.68,0.00024931,2]
[387512521,1758749450864,-3206.35,0.00025,2]
[387512522,1758749450873,-151.0,0.00025,7]
[387512523,1758749450883,-285.252871,0.00025,7]
[387512524,1758749450892,-151.0,0.00025,7]
[387512525,1758749450901,-153.264297,0.00025,7]
[387512526,1758749450911,-151.0,0.00025,7]
[387512527,1758749450921,-151.0,0.00025,7]
[387512528,1758749450932,-151.0,0.00025,7]
[387512529,1758749450941,-151.0,0.00025,7]
[387512530,1758749450951,-151.0,0.00025,7]
[387512531,1758749450961,-151.0,0.00025,7]
[387512532,1758749450973,-151.0,0.00025,7]
[387512533,1758749450983,-273.68361,0.00025,7]
[387512534,1758749450993,-532.2324375,0.00025,7]
[387512535,1758749451003,-1014.40402169,0.00025,2]
[387512536,1758749451013,-2856.06926622,0.00025105,2]
[387512537,1758749451023,-415.47,0.0002513,2]
[387512538,1758749451032,-508.49,0.00025205,2]
[387512539,1758749451041,-641.07,0.00025205,2]
[387512540,1758749451051,-598.05,0.00025205,2]
[387512541,1758749451060,-926.85,0.00025205,2]
[387512542,1758749451069,-739.4,0.00025205,4]
[387512543,1758749451079,-1028.54,0.00025205,2]
[387512544,1758749451088,-678.24,0.00025205,2]
[387512545,1758749451098,-557.69,0.00025205,2]
[387512546,1758749451107,-553.18,0.00025205,2]
[387512547,1758749451117,-2019.95,0.00025205,2]
[387512548,1758749451129,-821.48,0.00025205,2]
[387512549,1758749451138,-694.72,0.00025205,2]
[387512550,1758749451148,-496.13,0.00025205,2]
[387512551,1758749451157,-480.0,0.00025205,2]
[387512552,1758749451167,-585.45,0.00025205,2]
[387512553,1758749451178,-533.58,0.00025205,2]
[387512554,1758749451188,-638.68,0.00025205,2]
[387512555,1758749451197,-186.8,0.00025242,5]
[387512556,1758749451209,-2316.61612704,0.00025259,3]
[387512557,1758749451219,-250.0,0.00025327,2]
[387512558,1758749451228,-508.49,0.00025479,2]
[387512559,1758749451238,-641.29,0.00025479,2]
[387512560,1758749451247,-598.06,0.00025479,2]
[387512561,1758749451257,-926.94892972,0.00025479,2]
[387512562,1758749451266,-1028.77447017,0.00025479,2]
[387512563,1758749451275,-678.35,0.00025479,2]
[387512564,1758749451285,-557.77280255,0.00025479,2]
[387512565,1758749451294,-553.23,0.00025479,2]
[387512566,1758749451303,-2020.03008984,0.00025479,2]
[387512567,1758749451312,-821.56,0.00025479,2]
[387512568,1758749451322,-694.88813506,0.00025479,2]
[387512569,1758749451331,-496.27,0.00025479,2]
[387512570,1758749451340,-229.10089333,0.00025479,2]
[387512571,1758749451349,-585.47,0.00025479,2]
[387512572,1758749451358,-638.76,0.00025479,2]
[387512573,1758749451367,-508.70795393,0.00025753,2]
[387512574,1758749451377,-108000.000002,0.00026,30]
[387512575,1758749451387,-532.2324375,0.00026,30]
[387512576,1758749451396,-2316.61612704,0.00026331,5]
[387512577,1758749451406,-150.01,0.00026603,7]
[387512578,1758749451415,-150.01,0.00026703,7]
[387512579,1758749451427,-532.2324375,0.000268,30]
[387512580,1758749451437,-150.01,0.00026803,7]
[387512581,1758749451503,-186.8,0.00026882,6]
[387512582,1758749451517,-150.01,0.00026903,7]
[387512583,1758749451527,-502.38422378,0.00027,5]
[387512584,1758749451537,-150.01,0.00027003,7]
[387512585,1758749451547,-553.96,0.00027063,2]
[387512586,1758749451557,-150.01,0.00027103,7]
[387512587,1758749451566,-739.4,0.00027123,6]
[387512588,1758749451576,-150.01,0.00027203,7]
[387512589,1758749451586,-150.01,0.00027303,7]
[387512590,1758749451595,-500.0,0.00027397,7]
[387512591,1758749451606,-500.0,0.00027397,7]
[387512592,1758749451616,-162.49,0.00027397,7]
[387512593,1758749451626,-150.0,0.00027397,5]
[387512594,1758749451636,-150.01,0.00027403,15]
[387512595,1758749451646,-2316.61612704,0.00027403,7]
[387512596,1758749451659,-150.01,0.00027503,15]
[387512597,1758749451669,-277.335322,0.00027535,2]
[387512598,1758749451680,-532.2324375,0.000276,30]
[387512599,1758749451690,-150.01,0.00027603,15]
[387512600,1758749451704,-150.01,0.00027703,15]
[387512601,1758749451713,-173.0,0.0002773,7]
[387512602,1758749451722,-150.01,0.00027803,15]
[387512603,1758749451732,-173.0,0.00027876,2]
[387512604,1758749451741,-150.01,0.00027903,15]
[387512605,1758749451750,-250.0,0.00027945,5]
[387512606,1758749451759,-150.01,0.00028003,15]
[387512607,1758749451769,-173.0,0.00028006,2]
[387512608,1758749451779,-150.01,0.00028103,15]
[387512609,1758749451789,-173.0,0.00028122,2]
[387512610,1758749451799,-173.0,0.00028177,2]
[387512611,1758749451808,-173.0,0.00028182,2]
[387512612,1758749451818,-150.01,0.00028203,15]
[387512613,1758749451828,-199.0,0.00028219,14]
[387512614,1758749451837,-150.01,0.00028303,15]
[387512615,1758749451847,-175.0,0.00028363,2]
[387512616,1758749451857,-152.0,0.000284,120]
[387512617,1758749451867,-3206.35,0.000284,2]
[387512618,1758749451877,-150.01,0.00028403,15]
[387512619,1758749451887,-2316.61612704,0.00028475,9]
[387512620,1758749451899,-350.0,0.00028493,5]
[387512621,1758749451908,-150.01,0.00028503,15]
[387512622,1758749451918,-186.8,0.00028522,7]
[387512623,1758749451929,-173.0,0.00028545,2]
[387512624,1758749451939,-150.01,0.00028603,15]
[387512625,1758749451949,-150.01,0.00028703,15]
[387512626,1758749451959,-173.0,0.000288,2]
[387512627,1758749451969,-150.01,0.00028803,15]
[387512628,1758749451979,-150.01,0.00028903,15]
[387512629,1758749451988,-199.0,0.00028904,15]
[387512630,1758749451998,-173.0,0.00028951,7]
[387512631,1758749452007,-4506.70595168,0.0002899,2]
[387512632,1758749452016,-692.46,0.00028996,2]
[387512633,1758749452026,-150.01,0.00029003,15]
[387512634,1758749452036,-173.0,0.00029018,2]
[387512635,1758749452045,-739.4,0.00029041,8]
[387512636,1758749452055,-450.0,0.00029041,5]
[387512637,1758749452064,-173.0,0.00029097,2]
[387512638,1758749452073,-150.24370891,0.00029103,15]
[387512639,1758749452083,-605.27373208,0.00029226,22]
[387512640,1758749452094,-175.0,0.00029271,7]
[387512641,1758749452103,-10569.17528525,0.000293,2]
[387512642,1758749452112,-151.0,0.00029372,7]
[387512643,1758749452122,-151.0,0.00029372,7]
[387512644,1758749452135,-151.0,0.00029372,7]
[387512645,1758749452146,-151.0,0.00029372,7]
[387512646,1758749452157,-727.107319,0.00029372,7]
[387512647,1758749452168,-727.107319,0.00029372,7]
[387512648,1758749452179,-727.107319,0.00029372,7]
[387512649,1758749452188,-727.107319,0.00029372,7]
[387512650,1758749452197,-837.764433,0.00029372,7]
[387512651,1758749452206,-151.0,0.00029372,7]
[387512652,1758749452216,-837.764433,0.00029372,7]
[387512653,1758749452225,-151.0,0.00029372,7]
[387512654,1758749452234,-837.764433,0.00029372,7]
[387512655,1758749452244,-151.0,0.00029372,7]
[387512656,1758749452253,-837.764433,0.00029372,7]
[387512657,1758749452263,-151.0,0.00029372,7]
[387512658,1758749452273,-151.0,0.00029372,7]
[387512659,1758749452282,-151.0,0.00029372,7]
[387512660,1758749452291,-151.0,0.00029372,7]
[387512661,1758749452300,-151.0,0.00029372,7]
[387512662,1758749452310,-1599.66148657,0.00029373,2]
[387512663,1758749452320,-872.88895,0.00029373,7]
[387512664,1758749452330,-872.88895,0.00029373,7]
[387512665,1758749452340,-151.0,0.00029373,7]
[387512666,1758749452350,-872.88895,0.00029373,7]
[387512667,1758749452360,-180.480523,0.00029373,7]
[387512668,1758749452370,-151.0,0.00029373,7]
[387512669,1758749452380,-872.88895,0.00029373,7]
[387512670,1758749452390,-151.0,0.00029373,7]
[387512671,1758749452400,-151.0,0.00029373,7]
[387512672,1758749452409,-151.0,0.00029373,7]
[387512673,1758749452420,-151.0,0.00029373,7]
[387512674,1758749452429,-151.0,0.00029373,7]
[387512675,1758749452439,-151.0,0.00029373,7]
[387512676,1758749452449,-151.0,0.00029373,7]
[387512677,1758749452458,-151.0,0.00029373,7]
[387512678,1758749452467,-151.0,0.00029373,7]
[387512679,1758749452478,-255.324,0.00029373,7]
[387512680,1758749452486,-255.324,0.00029373,7]
[387512681,1758749452496,-255.324,0.00029373,7]
[387512682,1758749452505,-255.324,0.00029373,7]
[387512683,1758749452515,-396.044083,0.00029373,7]
[387512684,1758749452524,-151.0,0.00029373,7]
[387512685,1758749452534,-150.0,0.00029373,2]
[387512686,1758749452543,-2000.0,0.00029373,30]
[387512687,1758749452553,-2000.0,0.00029373,30]
[387512688,1758749452563,-1080.8,0.00029373,30]
[387512689,1758749452573,-250.0,0.00029373,10]
[387512690,1758749452583,-250.0,0.00029373,10]
[387512691,1758749452592,-250.0,0.00029373,10]
[387512692,1758749452602,-346.175394,0.00029373,10]
[387512693,1758749452611,-201485.56029843,0.00029373,20]
[387512694,1758749452830,-396.044083,0.000249,7]
[387512695,1758749452840,-151.0,0.000249,7]
[387512696,1758749452850,-396.044083,0.000249,7]
[387512697,1758749452859,-396.044083,0.00029373,7]
[387512698,1758749452869,-151.0,0.00029373,7]
[387512699,1758749452878,-5744.59585899,0.00029373,20]
[387512700,1758749452890,-11755.95614635,0.00029373,20]
[387512701,1758749453022,-480.0,0.00019178,2]
[387512702,1758749453031,-480.0,0.00019452,2]
[387512703,1758749453041,-151.0,0.000249,7]
[387512704,1758749453050,-151.0,0.000249,7]
[387512705,1758749453059,-396.044083,0.000249,7]
[387512706,1758749453068,-151.0,0.000249,7]
[387512707,1758749453078,-151.0,0.000249,7]
[387512708,1758749453087,-396.044083,0.00029373,7]
[387512709,1758749453096,-151.0,0.00029373,7]
[387512710,1758749453105,-151.0,0.00029373,7]
[387512711,1758749453115,-396.044083,0.00029373,7]
[387512712,1758749453126,-151.0,0.00029373,7]
[387512713,1758749453137,-151.0,0.00029373,7]
[387512714,1758749453147,-35280.50054273,0.00029373,20]
[387512715,1758749453158,-24999.2574322,0.00029373,20]
[387512716,1758749453258,-494.27005187,0.00019178,2]
[387512717,1758749453267,-480.0,0.00019726,2]
[387512718,1758749453277,-480.0,0.0002,2]
[387512719,1758749453286,-480.0,0.00020273,2]
[387512720,1758749453296,-82.27994817,0.00020547,2]
[387512721,1758749453315,-397.72005183,0.00020547,2]
[387512722,1758749453324,-2201.05,0.00021633,10]
[387512723,1758749453333,-332630.87804941,0.00029373,20]
[387512724,1758749453343,-5989.73907648,0.00029373,7]
[387512725,1758749453352,-2000.0,0.000294,2]
[387512726,1758749453362,-742.4,0.000294,2]
[387512727,1758749453371,-173.0,0.00029418,2]
[387512728,1758749453381,-2316.61612704,0.00029547,12]
[387512729,1758749453391,-199.0,0.00029589,16]
[387512730,1758749453400,-550.0,0.00029589,5]
[387512731,1758749453410,-173.0,0.00029635,2]
[387512732,1758749453420,-173.0,0.00029675,2]
[387512733,1758749453429,-173.0,0.00029921,2]
[387512734,1758749453439,-173.0,0.0002994,2]
[387512735,1758749453448,-191.6955,0.0003,2]
[387512736,1758749453457,-8215.19738007,0.0003,10]
[387512737,1758749453467,-27000.79262969,0.0003,30]
[387512740,1758749568355,150.0,0.00023726,30]
[387512745,1758749775545,156.0,0.00024,120]
[387512746,1758749879951,162.61,0.00015984,3]
[387512747,1758749880465,162.61,0.00015984,3]
[387512750,1758749991236,150.0,0.00023316,30]
[387512757,1758750608847,5800.02956416,0.00019078,2]
[387512758,1758750632075,-300.0,0.00019176,2]
[387512759,1758750632086,-13890.44173103,0.00019177,2]
[387512760,1758750632096,-152.35326726,0.00019177,2]
[387512761,1758750632106,-163.02354136,0.00019177,2]
[387512762,1758750632115,-212.93585943,0.00019177,2]
[387512763,1758750632126,-500.0,0.00019177,2]
[387512764,1758750632135,-500.0,0.00019177,2]
[387512765,1758750632145,-500.0,0.00019177,2]
[387512766,1758750632155,-500.0,0.00019177,2]
[387512767,1758750632166,-500.0,0.00019177,2]
[387512768,1758750632176,-500.0,0.00019177,2]
[387512769,1758750632186,-500.0,0.00019177,2]
[387512770,1758750632196,-500.0,0.00019177,2]
[387512771,1758750632205,-500.0,0.00019177,2]
[387512772,1758750632214,-618.3947581,0.00019177,2]
[387512773,1758750632224,-500.0,0.00019177,2]
[387512774,1758750632233,-500.0,0.00019177,2]
[387512775,1758750632243,-500.0,0.00019177,2]
[387512776,1758750632252,-500.0,0.00019177,2]
[387512777,1758750632262,-250.0,0.00019177,2]
[387512778,1758750632272,-557.56370437,0.00019177,2]
[387512779,1758750632281,-181.44313761,0.00019177,2]
[387512780,1758750632290,-480.0,0.00019178,2]
[387512781,1758750632301,-480.0,0.00019178,2]
[387512782,1758750632312,-480.0,0.00019178,2]
[387512783,1758750632322,-480.0,0.00019178,2]
[387512784,1758750632331,-480.0,0.00019178,2]
[387512785,1758750632341,-480.0,0.00019178,2]
[387512786,1758750632351,-528.61,0.00019178,2]
[387512787,1758750632360,-480.0,0.00019178,2]
[387512788,1758750632370,-480.0,0.00019178,2]
[387512789,1758750632379,-480.0,0.00019178,2]
[387512790,1758750632389,-480.0,0.00019178,2]
[387512791,1758750632398,-480.0,0.00019178,2]
[387512792,1758750632407,-480.0,0.00019178,2]
[387512793,1758750632417,-480.0,0.00019178,2]
[387512794,1758750632427,-480.0,0.00019178,2]
[387512796,1758750632436,-260.18966095,0.00019178,2]
[387512798,1758750632446,-480.0,0.00019178,2]
[387512799,1758750632456,-280.06,0.00019178,2]
[387512801,1758750632466,-480.0,0.00019178,2]
[387512803,1758750632476,-421.41209841,0.00019178,2]
[387512805,1758750632486,-264.0088733,0.00019178,2]
[387512807,1758750632496,-480.0,0.00019178,2]
[387512810,1758750632506,-480.0,0.00019178,2]
[387512811,1758750632515,-161.93797472,0.00019178,2]
[387512813,1758750632528,-318.06202528,0.00019178,2]
[387512815,1758750632537,-134.93797472,0.00019178,2]
[387513144,1758750640113,-45.84776895,0.00019178,2]
[387513146,1758750640123,-480.0,0.00019178,2]
[387513148,1758750640132,-480.0,0.00019178,2]
[387513150,1758750640141,-483.2219411,0.00019178,2]
[387513152,1758750640151,-480.0,0.00019178,2]
[387513154,1758750640160,-480.0,0.00019178,2]
[387513156,1758750640169,-480.0,0.00019178,2]
[387513158,1758750640178,-480.0,0.00019178,2]
[387513160,1758750640187,-480.0,0.00019178,2]
[387513162,1758750640198,-480.0,0.00019178,2]
[387513164,1758750640207,-480.88721694,0.00019178,2]
[387513166,1758750640216,-480.0,0.00019178,2]
[387513168,1758750640226,-324.22092329,0.00019178,2]
[387513170,1758750640236,-480.0,0.00019178,2]
[387513172,1758750640245,-480.0,0.00019178,2]
[387513174,1758750640256,-480.0,0.00019178,2]
[387513176,1758750640267,-480.0,0.00019178,2]
[387513179,1758750640276,-449.91638099,0.00019178,2]
[387513181,1758750640285,-480.0,0.00019178,2]
[387513183,1758750640295,-480.0,0.00019178,2]
[387513184,1758750640305,-480.0,0.00019178,2]
[387513186,1758750640316,-480.0,0.00019178,2]
[387513188,1758750640326,-151.0,0.00019178,2]
[387513190,1758750640336,-480.0,0.00019178,2]
[387513193,1758750640346,-151.0,0.00019178,2]
[387513195,1758750640355,-151.0,0.00019178,2]
[387513197,1758750640365,-151.0,0.00019178,2]
[387513199,1758750640375,-480.0,0.00019178,2]
[387513201,1758750640383,-151.0,0.00019178,2]
[387513203,1758750640392,-151.0,0.00019178,2]
[387513205,1758750640401,-151.0,0.00019178,2]
[387513207,1758750640410,-480.0,0.00019178,2]
[387513209,1758750640419,-151.0,0.00019178,2]
[387513210,1758750640428,-480.0,0.00019178,2]
[387513212,1758750640438,-152.30656426,0.00019178,2]
[387513214,1758750640448,-151.0,0.00019178,2]
[387513217,1758750640457,-480.0,0.00019178,2]
[387513219,1758750640467,-480.0,0.00019178,2]
[387513221,1758750640476,-480.0,0.00019178,2]
[387513223,1758750640485,-561.02,0.00019178,2]
[387513225,1758750640495,-480.0,0.00019178,2]
[387513227,1758750640504,-480.0,0.00019178,2]
[387513229,1758750640513,-480.0,0.00019178,2]
[387513231,1758750640523,-480.0,0.00019178,2]
[387513232,1758750640532,-480.0,0.00019178,2]
[387513235,1758750640542,-480.0,0.00019178,2]
[387513237,1758750640551,-480.0,0.00019178,2]
[387513239,1758750640561,-151.51217291,0.00019178,2]
[387513241,1758750640571,-480.0,0.00019178,2]
[387513252,1758750640666,-480.57503293,0.00019178,2]
[387513254,1758750640676,-151.0,0.00019178,2]
[387513256,1758750640685,-480.644988,0.00019178,2]
[387513258,1758750640698,-480.0,0.00019178,2]
[387513260,1758750640707,-500.0,0.00019178,2]
[387513262,1758750640718,-269.33264938,0.00019178,2]
[387513265,1758750640729,-480.0,0.00019178,2]
[387513266,1758750640738,-604.83,0.00019178,2]
[387513268,1758750640748,-480.0,0.00019178,2]
[387513271,1758750640757,-480.0,0.00019178,2]
[387513273,1758750640767,-481.47092123,0.00019178,2]
[387513275,1758750640777,-486.62,0.00019178,2]
[387513277,1758750640786,-480.0,0.00019178,2]
[387513279,1758750640795,-480.0,0.00019178,2]
[387513281,1758750640804,-480.0,0.00019178,2]
[387513283,1758750640814,-480.0,0.00019178,2]
[387513285,1758750640823,-480.0,0.00019178,2]
[387513286,1758750640834,-493.58,0.00019178,2]
[387513288,1758750640845,-480.0,0.00019178,2]
[387513291,1758750640854,-480.0,0.00019178,2]
[387513293,1758750640864,-480.0,0.00019178,2]
[387513295,1758750640873,-480.0,0.00019178,2]
[387513296,1758750640882,-480.0,0.00019178,2]
[387513299,1758750640891,-480.0,0.00019178,2]
[387513301,1758750640901,-480.0,0.00019178,2]
[387513303,1758750640911,-480.0,0.00019178,2]
[387513305,1758750640921,-480.0,0.00019178,2]
[387513307,1758750640931,-480.0,0.00019178,2]
[387513309,1758750640940,-480.0,0.00019178,2]
[387513311,1758750640949,-480.0,0.00019178,2]
[387513312,1758750640958,-480.0,0.00019178,2]
[387513315,1758750640968,-495.6,0.00019178,2]
[387513317,1758750640977,-480.0,0.00019178,2]
[387513318,1758750640986,-480.0,0.00019178,2]
[387513320,1758750640995,-504.52477876,0.00019178,2]
[387513323,1758750641005,-1000.0,0.00019178,2]
[387513325,1758750641014,-480.0,0.00019178,2]
[387513326,1758750641023,-564.78,0.00019178,2]
[387513327,1758750641032,-480.0,0.00019178,2]
[387513328,1758750641041,-480.0,0.00019178,2]
[387513329,1758750641050,-480.0,0.00019178,2]
[387513330,1758750641059,-480.0,0.00019178,2]